bitfinex/quotes_ETHUSD_20250916
["timestamp","ask_amount","ask_price","bid_price","bid_amount"]
[1758015589572,5.84041116,4516.6,4516.5,0.3162]
[1758015589786,5.84041116,4516.6,4516.5,0.7813]
[1758015590300,5.84041116,4516.6,4516.5,0.3162]
[1758015590597,6.32561116,4516.6,4516.5,0.0018]
[1758015591666,6.32561116,4516.6,4516.5,0.05780438]
[1758015591867,2.21340189,4516.3,4516.2,0.4666]
[1758015592062,5.4206536,4516.3,4516.2,0.4666]
[1758015592295,2.21425091,4516.2,4516.1,0.5091]
[1758015592669,2.21425091,4516.2,4516.1,0.7982]
[1758015592871,5.72335091,4516.2,4516.1,1.2648]
[1758015593071,5.72335091,4516.2,4516.1,0.3091]
[1758015593300,5.93108215,4516.2,4516.1,0.3091]
[1758015593812,12.57849998,4516.2,4516.1,0.02]
[1758015594115,16.73919537,4516.2,4516.1,0.02]
[1758015597305,16.73895808,4516.2,4516.1,0.02]
[1758015602039,16.73895808,4516.2,4516.1,0.0208]
[1758015602208,15.50175808,4516.2,4516.1,0.3305]
[1758015602404,11.2168857,4516.2,4516.1,0.7809]
[1758015602610,10.73835608,4516.2,4516.1,0.7809]
[1758015602838,15.02422846,4516.2,4516.1,0.7809]
[1758015603454,15.80632846,4516.2,4516.1,0.0208]
[1758015603754,16.72340123,4516.2,4516.1,0.0208]
[1758015604613,16.72340123,4516.2,4516.0,0.001]
[1758015604614,6.00629994,4516.1,4516.0,2e-08]
[1758015604818,6.65650511,4516.1,4516.0,2e-08]
[1758015605154,7.43860511,4516.1,4516.0,2e-08]
[1758015605453,7.89000511,4516.1,4516.0,2e-08]
[1758015608068,8.59933878,4516.1,4516.0,2e-08]
[1758015608262,10.93333878,4516.1,4516.0,2e-08]
[1758015608454,8.80591466,4516.1,4516.0,2e-08]
[1758015608958,8.59873352,4516.1,4516.0,2e-08]
[1758015609137,8.80591466,4516.1,4516.0,2e-08]
[1758015609521,11.86998704,4516.1,4516.0,0.30970002]
[1758015609754,11.39264328,4516.1,4516.0,0.30970002]
[1758015611182,11.86474328,4516.1,4516.0,2e-08]
[1758015611525,12.17474328,4516.1,4516.0,2e-08]
[1758015612373,12.17474328,4516.1,4516.0,0.00080002]
[1758015613181,12.61444328,4516.1,4516.0,0.00080002]
[1758015613979,13.09190933,4516.1,4516.0,0.00080002]
[1758015614482,11.87014929,4516.1,4516.0,0.31050002]
[1758015614632,11.39264328,4516.1,4516.0,0.31050002]
[1758015615475,7.10683047,4516.1,4516.0,1.21930002]
[1758015615771,10.79093262,4516.1,4516.0,1.21930002]
[1758015615977,10.58375148,4516.1,4516.0,1.21930002]
[1758015616131,10.79104996,4516.1,4516.0,1.21930002]
[1758015616338,1.10075002,4516.1,4516.0,1.21930002]
[1758015616558,1.10075002,4516.1,4516.0,1.34133002]
[1758015616559,0.5618,4516.1,4516.0,1.34133002]
[1758015617199,0.002,4516.6,4516.0,1.34133002]
[1758015617200,0.002,4516.6,4516.0,3.555679]
[1758015617475,0.002,4516.6,4516.3,2.21418675]
[1758015617675,0.002,4516.6,4516.2,0.0221425]
[1758015617963,0.002,4516.6,4516.5,2.52380384]
[1758015618470,0.002,4516.6,4516.5,17.93260384]
[1758015618837,0.002,4516.6,4516.5,21.61660384]
[1758015619555,0.0012,4516.6,4516.5,21.61660384]
[1758015619756,0.0012,4516.6,4516.5,15.7185]
[1758015619952,0.0012,4516.6,4516.5,21.05791345]
[1758015622553,0.0012,4516.6,4516.5,21.05871345]
[1758015622944,0.0012,4516.6,4516.5,23.27281729]
[1758015624645,0.0012,4516.6,4516.5,21.05871345]
[1758015624973,0.0012,4516.6,4516.5,17.37571345]
[1758015625169,0.0012,4516.6,4516.5,23.27281729]
[1758015625673,0.0012,4516.6,4516.5,21.05871345]
[1758015625838,0.0012,4516.6,4516.5,23.27281729]
[1758015626974,0.0012,4516.6,4516.5,21.05871345]
[1758015628775,0.0012,4516.6,4516.5,23.27281729]
[1758015628946,0.0012,4516.6,4516.5,21.05871345]
[1758015631476,0.0012,4516.6,4516.5,23.27281729]
[1758015643810,0.0012,4516.6,4516.5,20.14991345]
[1758015643989,0.0012,4516.6,4516.5,21.06661345]
[1758015644305,0.0012,4516.6,4516.5,22.82051729]
[1758015644472,0.0012,4516.6,4516.5,23.28071729]
[1758015644671,0.0004,4516.6,4516.5,23.28071729]
[1758015645475,0.7823,4516.6,4516.5,19.83921345]
[1758015645671,0.7823,4516.6,4516.5,14.5008]
[1758015645895,1.2105,4516.6,4516.5,18.1828]
[1758015646687,1.2105,4516.6,4516.5,20.39690384]
[1758015646688,0.7823,4516.6,4516.5,20.39690384]
[1758015646883,0.3084,4516.6,4516.5,20.39690384]
[1758015647097,0.0004,4516.6,4516.5,20.69380384]
[1758015647289,0.0004,4516.6,4516.5,22.83295567]
[1758015648626,0.0004,4516.6,4516.5,22.53605567]
[1758015649309,0.4743,4516.6,4516.5,22.53605567]
[1758015649985,0.7823,4516.6,4516.5,22.53605567]
[1758015650319,0.7823,4516.6,4516.5,20.32195183]
[1758015650814,0.7823,4516.6,4516.5,18.1828]
[1758015651314,0.7823,4516.6,4516.5,18.1838]
[1758015651614,0.7823,4516.6,4516.5,20.39790384]
[1758015651997,0.0004,4516.6,4516.5,20.39790384]
[1758015652203,0.0004,4516.6,4516.5,20.69590384]
[1758015653916,0.0004,4516.6,4516.5,20.80630384]
[1758015654415,0.0004,4516.6,4516.5,20.50830384]
[1758015654994,0.7767,4516.6,4516.5,18.2942]
[1758015656431,0.7767,4516.6,4516.5,20.50830384]
[1758015658737,0.7767,4516.6,4516.5,18.2942]
[1758015660253,0.7767,4516.6,4516.5,20.50830384]
[1758015660546,0.2958,4516.6,4516.5,20.50830384]
[1758015660716,0.2958,4516.6,4516.5,18.2942]
[1758015661547,0.7561,4516.6,4516.5,14.6122]
[1758015661756,1.2062,4516.6,4516.5,18.2942]
[1758015662505,0.7561,4516.6,4516.5,18.2942]
[1758015665116,0.7561,4516.6,4516.5,3.7942]
[1758015665715,0.0004,4516.6,4516.5,6.31790384]
[1758015666035,0.0004,4516.6,4516.5,8.45705567]
[1758015666328,0.0004,4516.6,4516.5,9.37515567]
[1758015667407,0.0004,4516.6,4516.5,3.00785183]
[1758015667721,3.53209826,4516.6,4516.5,0.0018]
[1758015667921,3.53209826,4516.6,4516.5,3.6838]
[1758015669833,3.53129826,4516.6,4516.5,3.6838]
[1758015670028,1.31724345,4516.6,4516.5,3.6838]
[1758015670737,3.53129826,4516.6,4516.5,3.6838]
[1758015671445,3.53049826,4516.6,4516.5,3.6838]
[1758015672873,3.53249826,4516.6,4516.5,0.0018]
[1758015673072,3.53249826,4516.6,4516.5,3.6838]
[1758015673271,1.31844345,4516.6,4516.5,3.6838]
[1758015673773,1.31844345,4516.6,4516.5,0.0018]
[1758015673973,1.31844345,4516.6,4516.5,3.6838]
[1758015675470,0.86834345,4516.6,4516.5,3.6838]
[1758015675975,0.40804345,4516.6,4516.5,3.6838]
[1758015676188,0.09274345,4516.6,4516.5,4.4308]
[1758015678473,0.89304345,4516.6,4516.5,3.6838]
[1758015678648,0.09274345,4516.6,4516.5,3.6838]
[1758015678845,0.09274345,4516.6,4516.5,3.9873]
[1758015688678,0.09274345,4516.6,4516.5,4.8915]
[1758015688885,0.09274345,4516.6,4516.5,5.32070677]
[1758015689085,0.09274345,4516.6,4516.5,4.87910677]
[1758015692379,0.09274345,4516.6,4516.5,1.19710677]
[1758015692584,0.09274345,4516.6,4516.5,3.9873]
[1758015693621,0.09194345,4516.6,4516.5,3.9873]
[1758015695009,0.002,4516.6,4516.5,7.12774487]
[1758015695206,0.002,4516.6,4516.5,7.21600384]
[1758015697427,0.002,4516.6,4516.5,21.71600384]
[1758015698825,0.002,4516.6,4516.5,23.85515567]
[1758015706417,0.002,4516.6,4516.5,19.26895567]
[1758015706607,0.002,4516.6,4516.5,22.94995567]
[1758015707615,0.002,4516.6,4516.5,23.39155567]
[1758015708144,0.002,4516.6,4516.5,23.85415567]
[1758015711951,0.002,4516.6,4516.5,19.26895567]
[1758015712266,0.002,4516.6,4516.5,23.38515567]
[1758015712416,0.002,4516.6,4516.5,23.85975567]
[1758015716588,0.0012,4516.6,4516.5,23.85975567]
[1758015718587,0.0012,4516.6,4516.5,28.14457618]
[1758015719105,0.0012,4516.6,4516.5,28.23329286]
[1758015720265,0.0004,4516.6,4516.5,28.23329286]
[1758015721690,0.0004,4516.6,4516.5,23.94847235]
[1758015723412,0.0004,4516.6,4516.5,28.23329286]
[1758015723562,0.0004,4516.6,4516.5,23.94847235]
[1758015724463,0.0004,4516.6,4516.5,23.94747235]
[1758015724664,0.0004,4516.6,4516.5,19.35767235]
[1758015724981,0.0004,4516.6,4516.5,23.03767235]
[1758015725360,0.0004,4516.6,4516.5,22.94895567]
[1758015726259,1.2228,4516.6,4516.5,22.64545567]
[1758015727200,1.2228,4516.6,4516.5,18.96545567]
[1758015727386,1.2228,4516.6,4516.5,14.6122]
[1758015727702,1.2228,4516.6,4516.5,3.7922]
[1758015728001,1.88835224,4516.6,4516.5,3.7922]
[1758015728366,4.10240705,4516.6,4516.5,0.0018]
[1758015728563,11.38722756,4516.6,4516.5,0.0018]
[1758015728763,12.51072473,4516.6,4516.5,0.0018]
[1758015728989,12.71789063,4516.6,4516.5,0.0018]
[1758015729212,12.51072473,4516.6,4516.5,0.0018]
[1758015731418,12.51047174,4516.6,4516.5,0.0018]
[1758015732527,12.50994978,4516.6,4516.5,0.0018]
[1758015733112,12.38589133,4516.6,4516.5,0.0018]
[1758015734113,12.17922756,4516.6,4516.5,0.0018]
[1758015745466,12.17842756,4516.6,4516.5,0.0018]
[1758015745646,15.85942756,4516.6,4516.5,0.0018]
[1758015747755,11.57460705,4516.6,4516.5,0.0018]
[1758015751229,11.78105037,4516.6,4516.5,0.0018]
[1758015751448,11.78025037,4516.6,4516.5,0.0018]
[1758015752445,11.90417121,4516.6,4516.5,0.0018]
[1758015752647,11.90417126,4516.6,4516.5,0.0018]
[1758015755254,12.11115554,4516.6,4516.5,0.0018]
[1758015756335,12.58870313,4516.6,4516.5,0.0018]
[1758015759282,12.58870313,4516.6,4516.5,0.00080002]
[1758015760276,12.59070313,4516.6,4516.5,0.00080002]
[1758015761643,8.90970313,4516.6,4516.5,0.00080002]
[1758015761945,12.59170313,4516.6,4516.5,0.00080002]
[1758015767115,8.90970313,4516.6,4516.5,0.00080002]
[1758015767290,12.59170313,4516.6,4516.5,0.00080002]
[1758015767678,12.59240251,4516.6,4516.5,0.00080002]
[1758015769280,8.91040251,4516.6,4516.5,0.00080002]
[1758015769621,12.59240251,4516.6,4516.5,0.00080002]
[1758015769818,8.11840251,4516.6,4516.5,0.00080002]
[1758015770412,8.11966603,4516.6,4516.5,0.00080002]
[1758015770606,8.11886603,4516.6,4516.5,0.00080002]
[1758015770988,5.42726363,4516.6,4516.5,0.00080002]
[1758015771820,5.21956838,4516.6,4516.5,0.00080002]
[1758015772928,4.55401614,4516.6,4516.5,0.00080002]
[1758015773312,6.76807095,4516.6,4516.5,0.00080002]
[1758015773822,5.54767095,4516.6,4516.5,0.00080002]
[1758015775339,9.22967095,4516.6,4516.5,0.00080002]
[1758015779207,10.02167095,4516.6,4516.5,0.00080002]
[1758015779407,10.22921932,4516.6,4516.5,0.00080002]
[1758015779938,10.70737802,4516.6,4516.5,0.00080002]
[1758015780513,10.79614254,4516.6,4516.5,0.00080002]
[1758015781535,10.79534254,4516.6,4516.5,0.00080002]
[1758015782123,10.79593738,4516.6,4516.5,0.00080002]
[1758015782511,10.79593509,4516.6,4516.5,0.00080002]
[1758015785436,3.00629994,4516.1,4516.0,2e-08]
[1758015785648,0.792,4515.5,4515.3,2e-08]
[1758015785847,9.22885191,4515.4,4515.3,2e-08]
[1758015786144,9.43640028,4515.4,4515.3,2e-08]
[1758015786350,9.52519554,4515.4,4515.3,2e-08]
[1758015787356,9.31764717,4515.4,4515.3,2e-08]
[1758015787749,10.31682103,4515.4,4515.3,2e-08]
[1758015788156,10.10964717,4515.4,4515.3,2e-08]
[1758015788330,10.22328817,4515.4,4515.3,2e-08]
[1758015791741,10.09810326,4515.4,4515.3,2e-08]
[1758015792168,9.89107948,4515.4,4515.3,2e-08]
[1758015793347,10.22227104,4515.4,4515.3,2e-08]
[1758015794169,10.09805984,4515.4,4515.3,2e-08]
[1758015794533,10.22223297,4515.4,4515.3,2e-08]
[1758015795964,10.22143297,4515.4,4515.3,2e-08]
[1758015796166,10.22143297,4515.4,4515.3,0.00080002]
[1758015805241,10.42830963,4515.4,4515.3,0.00080002]
[1758015806374,10.90512061,4515.4,4515.3,0.00080002]
[1758015808987,10.69814025,4515.4,4515.3,0.00080002]
[1758015809186,10.90517225,4515.4,4515.3,0.00080002]
[1758015809751,15.19497719,4515.4,4515.3,0.00080002]
[1758015811792,3.00608848,4514.9,4514.8,2e-08]
[1758015811997,14.51697521,4514.9,4514.8,2e-08]
[1758015813189,15.08380385,4514.9,4514.8,2e-08]
[1758015814003,15.08401911,4514.9,4514.8,2e-08]
[1758015814705,15.08405188,4514.9,4514.8,2e-08]
[1758015815275,10.79424694,4514.9,4514.8,2e-08]
[1758015815609,15.08405188,4514.9,4514.8,2e-08]
[1758015816990,14.87679064,4514.9,4514.8,2e-08]
[1758015817300,15.08415668,4514.9,4514.8,2e-08]
[1758015820934,15.08335668,4514.9,4514.8,2e-08]
[1758015822001,15.08335668,4514.9,4514.8,0.00080002]
[1758015831906,15.08535668,4514.9,4514.8,0.00080002]
[1758015832838,15.08537553,4514.9,4514.8,0.00080002]
[1758015833615,10.79557059,4514.9,4514.8,0.00080002]
[1758015835410,10.79557059,4514.9,4514.8,0.30530002]
[1758015836249,10.79557059,4514.9,4514.8,0.07314029]
[1758015837117,10.79557059,4514.9,4514.8,0.0008]
[1758015840713,6.32057059,4514.9,4514.8,0.3053]
[1758015840915,9.52593657,4514.9,4514.8,1.2254]
[1758015841225,14.29337553,4514.9,4514.8,1.2254]
[1758015841431,15.08537553,4514.9,4514.8,1.2254]
[1758015843562,15.08551996,4514.9,4514.8,1.2254]
[1758015845135,15.08551996,4514.9,4514.8,0.0008]
[1758015845396,15.08551996,4514.9,4514.8,0.7596]
[1758015845753,15.08551996,4514.9,4514.8,1.2254]
[1758015846279,15.08471996,4514.9,4514.8,1.2254]
[1758015847351,14.54573748,4514.9,4514.8,1.2254]
[1758015847669,15.0852503,4514.9,4514.8,1.2254]
[1758015848780,15.40174867,4514.9,4514.8,0.0008]
[1758015848964,16.34334867,4514.9,4514.8,0.0008]
[1758015849165,16.34378878,4514.9,4514.8,0.0008]
[1758015849481,3.00723193,4514.2,4514.1,2e-08]
[1758015849682,14.31024476,4514.2,4514.1,2e-08]
[1758015849983,14.31024476,4514.2,4514.1,1.21690002]
[1758015850350,14.97636742,4514.2,4514.1,1.21690002]
[1758015850753,14.97636742,4514.2,4514.1,0.29090002]
[1758015850987,14.97636742,4514.2,4514.1,0.76030002]
[1758015851286,14.97636742,4514.2,4514.1,1.21690002]
[1758015855900,14.97636742,4514.2,4514.1,0.76030002]
[1758015856792,14.96636742,4514.2,4514.1,0.76030002]
[1758015859977,14.96636742,4514.2,4514.1,0.76110002]
[1758015860176,14.96636742,4514.2,4514.1,0.29170002]
[1758015860711,14.96636742,4514.2,4514.1,0.78690002]
[1758015861486,10.67656248,4514.2,4514.1,0.78690002]
[1758015861691,10.67656248,4514.2,4514.1,1.25050002]
[1758015862992,10.67656248,4514.2,4514.1,0.78690002]
[1758015863193,10.67647469,4514.2,4514.1,0.78690002]
[1758015864520,10.67647469,4514.2,4514.1,1.25050002]
[1758015866114,10.67647469,4514.2,4514.1,0.55413178]
[1758015867418,10.67647707,4514.2,4514.1,0.05893178]
[1758015868821,10.67647707,4514.2,4514.1,0.05993178]
[1758015869326,10.67847707,4514.2,4514.1,0.05993178]
[1758015871413,10.67767707,4514.2,4514.1,0.05993178]
[1758015871615,10.67767707,4514.2,4514.1,0.0018]
[1758015872633,10.67767707,4514.2,4514.1,0.2877]
[1758015874226,10.67758849,4514.2,4514.1,0.2877]
[1758015875223,10.67763199,4514.2,4514.1,0.2877]
[1758015876325,10.67766782,4514.2,4514.1,0.2877]
[1758015877444,10.67766782,4514.2,4514.1,0.0018]
[1758015879949,11.42556782,4514.2,4514.1,0.0018]
[1758015880449,11.87696782,4514.2,4514.1,0.0018]
[1758015881640,11.42556782,4514.2,4514.1,0.0018]
[1758015882738,11.87696782,4514.2,4514.1,0.0018]
[1758015884451,11.66951564,4514.2,4514.1,0.0018]
[1758015884649,11.87704186,4514.2,4514.1,0.0018]
[1758015885218,9.67340993,4514.2,4514.1,0.0018]
[1758015885418,9.22200993,4514.2,4514.1,0.0018]
[1758015886751,9.67347032,4514.2,4514.1,0.0018]
[1758015887058,9.22207032,4514.2,4514.1,0.0018]
[1758015887723,8.47417032,4514.2,4514.1,0.7829]
[1758015888939,8.47417032,4514.2,4514.1,0.2877]
[1758015889829,8.47417032,4514.2,4514.1,0.0018]
[1758015891026,9.22197032,4514.2,4514.1,0.0018]
[1758015891223,9.70417032,4514.2,4514.1,0.0018]
[1758015894434,9.70416204,4514.2,4514.1,0.0018]
[1758015894835,9.91167719,4514.2,4514.1,0.0018]
[1758015895248,9.70416204,4514.2,4514.1,0.0018]
[1758015896542,9.70336204,4514.2,4514.1,0.0018]
[1758015897543,8.76206204,4514.2,4514.1,0.0018]
[1758015897744,9.73072748,4514.2,4514.1,0.0018]
[1758015897946,9.60621432,4514.2,4514.1,0.0018]
[1758015898145,9.73070932,4514.2,4514.1,0.0018]
[1758015900170,9.93818506,4514.2,4514.1,0.0018]
[1758015900367,10.41620908,4514.2,4514.1,0.0018]
[1758015902148,10.41604843,4514.2,4514.1,0.0018]
[1758015902345,10.41576316,4514.2,4514.1,0.0018]
[1758015904373,10.41564531,4514.2,4514.1,0.0018]
[1758015907262,10.41559679,4514.2,4514.1,0.0018]
[1758015913783,9.15819679,4514.2,4514.1,0.0018]
[1758015914368,9.15824884,4514.2,4514.1,0.0018]
[1758015915102,9.15824884,4514.2,4514.1,0.2891]
[1758015915600,10.42664884,4514.2,4514.1,0.0018]
[1758015915894,9.92684884,4514.2,4514.1,0.0018]
[1758015916201,9.45794884,4514.2,4514.1,0.0018]
[1758015917485,9.45783486,4514.2,4514.1,0.0018]
[1758015917887,5.47613486,4514.2,4514.1,0.2891]
[1758015918094,8.47291113,4514.2,4514.1,0.7774]
[1758015918406,7.68171113,4514.2,4514.1,1.2469]
[1758015918588,8.47371113,4514.2,4514.1,1.01412131]
[1758015918919,8.47371113,4514.2,4514.1,0.54542131]
[1758015919781,4.79171113,4514.2,4514.1,0.54542131]
[1758015919981,8.47371113,4514.2,4514.1,0.54542131]
[1758015921786,8.47291113,4514.2,4514.1,0.54542131]
[1758015922202,8.47291113,4514.2,4514.1,0.0008]
[1758015922384,8.47291113,4514.2,4514.1,0.758]
[1758015923197,8.47291113,4514.2,4514.1,0.759]
[1758015924595,8.47281602,4514.2,4514.1,0.759]
[1758015925695,4.79081602,4514.2,4514.1,0.759]
[1758015925894,8.47181602,4514.2,4514.1,0.759]
[1758015926729,8.47184019,4514.2,4514.1,0.759]
[1758015927538,8.47184019,4514.2,4514.1,0.2882]
[1758015927703,8.47184019,4514.2,4514.1,0.759]
[1758015928442,0.99964019,4514.2,4514.1,0.2882]
[1758015928738,0.99964019,4514.2,4514.1,1.0429]
[1758015928739,0.66812266,4514.2,4514.1,1.0429]
[1758015929212,0.002,4514.2,4514.1,1.0429]
[1758015932865,0.002,4514.2,4514.1,1.06505281]
[1758015933068,0.002,4514.2,4514.1,2.59950528]
[1758015933566,0.002,4514.2,4514.1,6.91049787]
[1758015933865,0.002,4514.2,4514.1,6.88834506]
[1758015935355,0.002,4514.2,4514.1,2.59950528]
[1758015936070,0.002,4514.2,4514.1,5.99660528]
[1758015936381,0.002,4514.2,4514.1,4.44]
[1758015936576,0.002,4514.2,4514.1,18.94]
[1758015936872,0.002,4514.2,4514.1,4.44]
[1758015937869,0.002,4514.2,4514.1,4.7239]
[1758015938985,0.002,4514.2,4514.1,4.44]
[1758015939878,0.002,4514.2,4514.1,6.37353]
[1758015941059,0.002,4514.2,4514.1,6.65743]
[1758015941378,0.002,4514.2,4514.1,4.7239]
[1758015941569,0.002,4514.2,4514.1,19.2239]
[1758015942855,0.002,4514.2,4514.1,23.51273978]
[1758015945590,0.002,4514.2,4514.1,23.22883978]
[1758015946993,0.0012,4514.2,4514.1,23.22883978]
[1758015950309,0.0012,4514.2,4514.1,23.22783978]
[1758015953310,0.0012,4514.2,4514.1,19.07703978]
[1758015953488,0.0012,4514.2,4514.1,22.75703978]
[1758015953811,0.0012,4514.2,4514.1,18.9439]
[1758015955202,0.0012,4514.2,4514.1,21.159181]
[1758015956123,0.0012,4514.2,4514.1,20.683481]
[1758015958192,0.0012,4514.2,4514.1,21.153281]
[1758015958913,0.0012,4514.2,4514.1,17.473281]
[1758015959113,0.0012,4514.2,4514.1,21.153281]
[1758015959527,0.0012,4514.2,4514.1,25.44212078]
[1758015962616,0.0012,4514.2,4514.1,24.97232078]
[1758015962934,1.1936,4514.2,4514.1,18.1808]
[1758015963423,1.1936,4514.2,4514.1,20.396081]
[1758015964427,0.7431,4514.2,4514.1,20.396081]
[1758015964814,0.0012,4514.2,4514.1,24.68492078]
[1758015965011,0.0012,4514.2,4514.1,25.45892078]
[1758015966714,0.0012,4514.2,4514.1,24.98912078]
[1758015968109,0.0012,4514.2,4514.1,25.45892078]
[1758015969144,0.0012,4514.2,4514.1,25.56932078]
[1758015969309,0.0012,4514.2,4514.1,25.85322078]
[1758015970247,0.0012,4514.2,4514.1,25.94199279]
[1758015970740,0.0012,4514.2,4514.1,20.59525301]
[1758015970940,1.1936,4514.2,4514.1,6.09525301]
[1758015971347,1.1928,4514.2,4514.1,6.006481]
[1758015971726,1.1928,4514.2,4514.1,2.327481]
[1758015971913,1.1928,4514.2,4514.1,6.006481]
[1758015972111,1.192,4514.2,4514.1,6.006481]
[1758015973644,0.4505,4514.5,4514.4,2.21513379]
[1758015973847,1.1924,4514.5,4514.4,5.91708512]
[1758015974045,0.3065,4514.5,4514.4,6.00533379]
[1758015974209,0.4525,4514.7,4514.6,2.21503566]
[1758015974409,0.4525,4514.7,4514.6,5.91618601]
[1758015974658,0.759,4514.7,4514.6,5.89403566]
[1758015975038,1.1944,4514.7,4514.6,5.89403566]
[1758015975349,1.1944,4514.7,4514.6,3.679]
[1758015975847,1.1944,4514.7,4514.6,4.12386917]
[1758015978057,1.1944,4514.7,4514.6,6.33890483]
[1758015978512,1.1944,4514.7,4514.6,2.65990483]
[1758015978718,1.1944,4514.7,4514.6,6.33890483]
[1758015982647,1.1944,4514.7,4514.6,2.65990483]
[1758015982830,1.1944,4514.7,4514.6,6.33890483]
[1758015983032,1.1944,4514.7,4514.6,2.65990483]
[1758015983233,1.1944,4514.7,4514.6,6.33890483]
[1758015984157,1.1944,4514.7,4514.6,6.33970483]
[1758015985546,1.1944,4514.7,4514.6,4.12466917]
[1758015985843,1.1944,4514.7,4514.6,6.33970483]
[1758015987459,1.1944,4514.7,4514.6,4.12466917]
[1758015987837,1.1944,4514.7,4514.6,6.33970483]
[1758015990166,1.1944,4514.7,4514.6,4.12466917]
[1758015990931,1.1944,4514.7,4514.6,6.33970483]
[1758015991344,1.1944,4514.7,4514.6,5.89483566]
[1758015992770,0.7439,4514.7,4514.6,5.89483566]
[1758015992948,0.3085,4514.7,4514.6,5.89483566]
[1758015993270,0.002,4514.7,4514.6,5.89483566]
[1758015995057,0.002,4514.7,4514.6,6.3283525]
[1758015997574,0.2864,4514.7,4514.6,6.3283525]
[1758015999748,1.2186,4514.7,4514.6,4.11231684]
[1758016000857,1.2186,4514.7,4514.6,6.3273525]
[1758016001255,1.2186,4514.7,4514.6,4.11231684]
[1758016001463,1.2178,4514.7,4514.6,6.3273525]
[1758016001656,1.2178,4514.7,4514.6,4.11231684]
[1758016002486,1.2178,4514.7,4514.6,0.43431684]
[1758016002684,1.2178,4514.7,4514.6,3.6788]
[1758016003768,3.43278659,4514.7,4514.6,3.6788]
[1758016003955,6.54318659,4514.7,4514.6,3.6788]
[1758016004351,6.54318659,4514.7,4514.6,0.0008]
[1758016004550,6.54318659,4514.7,4514.6,3.6788]
[1758016004754,7.20914512,4514.7,4514.6,3.6788]
[1758016008450,4.99415853,4514.7,4514.6,3.6788]
[1758016011795,4.99415853,4514.7,4514.6,0.2858]
[1758016011796,3.77675853,4514.7,4514.6,0.2858]
[1758016011980,3.77675853,4514.7,4514.6,6.63113566]
[1758016011981,3.66635853,4514.7,4514.6,6.63113566]
[1758016012150,0.0004,4514.7,4514.6,6.63213566]
[1758016015696,0.0004,4514.7,4514.6,4.4171]
[1758016016254,0.0004,4514.7,4514.6,3.6798]
[1758016016689,0.3055,4514.7,4514.6,3.6798]
[1758016017003,1.2599,4514.7,4514.6,3.6798]
[1758016018072,1.2599,4514.7,4514.6,0.0018]
[1758016018304,1.2599,4514.7,4514.6,3.6798]
[1758016018707,1.2599,4514.7,4514.6,0.0018]
[1758016018907,1.2599,4514.7,4514.6,3.6798]
[1758016019078,0.3055,4514.7,4514.6,3.6798]
[1758016019275,0.0004,4514.7,4514.6,3.6798]
[1758016019494,0.0004,4514.7,4514.6,5.89483566]
[1758016019674,0.0004,4514.7,4514.6,6.67863566]
[1758016022583,0.0016,4514.9,4514.7,2.21494712]
[1758016022795,0.0016,4514.9,4514.8,3.70014937]
[1758016023404,0.0016,4514.9,4514.8,5.9150869]
[1758016023617,0.0008,4514.9,4514.8,5.89293753]
[1758016025779,0.0008,4514.9,4514.8,3.678]
[1758016026039,0.0008,4514.9,4514.8,3.70014937]
[1758016026186,0.3059,4514.9,4514.8,3.678]
[1758016026390,1.2603,4514.9,4514.8,3.678]
[1758016029743,0.792,4514.8,4514.7,0.0008]
[1758016030055,12.10709735,4514.8,4514.7,3.6788]
[1758016030204,12.41219735,4514.8,4514.7,3.6788]
[1758016030402,13.07817806,4514.8,4514.7,3.6788]
[1758016035910,5.71748071,4514.8,4514.7,3.6788]
[1758016036306,7.93241824,4514.8,4514.7,0.0008]
[1758016038354,5.71748071,4514.8,4514.7,0.0008]
[1758016039563,4.45798071,4514.8,4514.7,0.0008]
[1758016039763,3.66598071,4514.8,4514.7,0.3091]
[1758016039944,3.0,4514.8,4514.7,0.7846]
[1758016044971,3.0,4514.8,4514.7,2.99958659]
[1758016045160,3.0,4514.8,4514.7,3.28388659]
[1758016045769,0.0008,4514.9,4514.8,2.21493753]
[1758016045954,0.0008,4514.9,4514.8,2.7129869]
[1758016046146,0.0008,4514.9,4514.8,3.0230869]
[1758016047770,0.002,4515.2,4514.8,3.0230869]
[1758016047939,0.002,4515.2,4514.9,6.36797618]
[1758016048142,0.002,4515.2,4515.0,0.02214839]
[1758016048368,0.002,4515.2,4515.1,3.678]
[1758016049267,0.3042,4515.2,4515.1,3.678]
[1758016049663,1.2375,4515.2,4515.1,3.678]
[1758016051438,0.3042,4515.2,4514.8,0.02294937]
[1758016051639,0.9333,4515.1,4514.9,3.678]
[1758016051886,3.002,4515.2,4515.0,0.02214839]
[1758016052099,3.4873,4515.2,4515.1,3.678]
[1758016052316,3.7895,4515.2,4515.1,3.678]
[1758016053101,3.3042,4515.2,4515.1,3.678]
[1758016054180,3.002,4515.2,4515.1,3.678]
[1758016056308,3.002,4515.2,4515.1,3.6788]
[1758016058113,3.3042,4515.2,4515.1,3.6788]
[1758016058316,3.002,4515.2,4515.1,3.6788]
[1758016059986,3.3042,4515.2,4515.1,3.6788]
[1758016061627,3.3034,4515.2,4515.1,3.6788]
[1758016062214,3.0012,4515.2,4515.1,3.6788]
[1758016064418,0.0012,4515.2,4515.1,3.6788]
[1758016065021,0.7514,4515.2,4515.1,3.6788]
[1758016065195,1.2367,4515.2,4515.1,3.6788]
[1758016067647,4.2367,4515.2,4515.1,3.6788]
[1758016070051,4.2367,4515.2,4515.1,3.6778]
[1758016071220,3.3034,4515.2,4515.1,3.6778]
[1758016073149,3.3026,4515.2,4515.1,3.6778]
[1758016073667,3.0004,4515.2,4515.1,3.6778]
[1758016073821,3.66627427,4515.2,4515.1,3.6778]
[1758016075357,3.66627427,4515.2,4515.1,3.9912]
[1758016075535,0.0004,4515.2,4515.1,3.9912]
[1758016076536,0.0004,4515.2,4515.1,3.6778]
[1758016076951,0.3068,4515.2,4515.1,3.6778]
[1758016078158,0.0004,4515.2,4515.1,3.6778]
[1758016079428,1.2115,4515.2,4515.1,0.0008]
[1758016079627,1.2115,4515.2,4515.1,3.6778]
[1758016080135,0.0004,4515.2,4515.1,3.6778]